[Event "41st Nezhmetdinov Rapid 2019"]
[Site "Kazan"]
[Date "2019.05.29"]
[Round "4.9"]
[White "Iljiushenok, Ilia"]
[Black "Tsydypov, Zhamsaran"]
[Result "1/2-1/2"]
[ECO "A17"]
[WhiteElo "2534"]
[BlackElo "2546"]
[Annotator "RC"]
[PlyCount "74"]
[EventDate "2019.05.29"]
[EventType "swiss"]
[EventCountry "RUS"]
[SourceTitle "playchess.com"]
[Source "ChessBase"]
[SourceQuality "1"]
[TimeControl "900+10"]

1. c4 {[%emt 0:00:00]} e6 {[%emt 0:00:01]} 2. Nc3 {[%emt 0:00:00]} Nf6 {[%emt 0:00:02]} 3. Nf3 {[%emt 0:00:08]} d5 {[%emt 0:00:10]} 4. cxd5 {[%emt 0:00:09]} exd5 {[%emt 0:00:05]} 5. d4 {[%emt 0:00:04]} c6 {[%emt 0:00:11]} 6. Qc2 {[%emt 0:00:16]} g6 {[%emt 0:00:27]} 7. Bg5 {[%emt 0:01:20]} Be7 {[%emt 0:00:17]} 8. e3 {[%emt 0:00:35]} Bf5 {[%emt 0:00:06]} 9. Bd3 {[%emt 0:00:02]} Bxd3 {[%emt 0:00:05]} 10. Qxd3 {[%emt 0:00:02]} O-O {[%emt 0:00:09]} 11. O-O {[%emt 0:00:08]} Nbd7 {[%emt 0:00:02]} 12. Rab1 {[%emt 0:00:29]} a5 {[%emt 0:01:06]} 13. h3 {[%emt 0:00:20]} Re8 {[%emt 0:00:06]} 14. Bf4 {[%emt 0:00:07]} Qb6 {[%emt 0:00:53]} 15. Rfc1 {[%emt 0:00:20]} Qa6 {[%emt 0:00:10]} 16. Qc2 {[%emt 0:00:37]} Bf8 {[%emt 0:00:38]} 17. Nd2 {[%emt 0:01:04]} a4 {[%emt 0:00:25]} 18. Re1 {[%emt 0:00:58]} Nb6 {[%emt 0:03:07]} 19. Be5 {[%emt 0:00:57]} Nfd7 {[%emt 0:00:30]} 20. Bg3 {[%emt 0:00:03]} Nc4 {[%emt 0:00:04]} 21. Nxc4 {[%emt 0:04:34]} Qxc4 {[%emt 0:00:02]} 22. b3 {[%emt 0:00:02]} axb3 {[%emt 0:00:05]} 23. axb3 {[%emt 0:00:03]} Qb4 {[%emt 0:00:10]} 24. Ra1 {[%emt 0:00:11]} Ra3 {[%emt 0:00:49]} 25. Rxa3 {[%emt 0:02:36]} Qxa3 {[%emt 0:00:02]} 26. Rb1 {[%emt 0:00:39]} Bb4 {[%emt 0:00:37]} 27. Na4 {[%emt 0:01:38]} Nf6 {[%emt 0:01:03]} 28. Rb2 {[%emt 0:00:01]} Bf8 {[%emt 0:00:08]} 29. Ra2 {[%emt 0:00:06]} Qb4 {[%emt 0:00:02]} 30. Nc3 {[%emt 0:00:02]} Qb6 {[%emt 0:01:20]} 31. Na4 {[%emt 0:00:26]} Qd8 {[%emt 0:00:03]} 32. Be5 {[%emt 0:00:40]} Nd7 {[%emt 0:00:18]} 33. Bf4 {[%emt 0:00:02]} Qa5 {[%emt 0:02:08]} 34. Nc3 {[%emt 0:00:21]} Qb6 {[%emt 0:00:07]} 35. Na4 {[%emt 0:00:03]} Qb4 {[%emt 0:00:04]} 36. Nc3 {[%emt 0:00:08]} Qb6 {[%emt 0:00:37]} 37. Na4 {[%emt 0:00:05]} Qb4 {[%emt 0:00:01]} 1/2-1/2

[Event "41st Nezhmetdinov Rapid 2019"]
[Site "Kazan"]
[Date "2019.05.29"]
[Round "6.2"]
[White "Svetushkin, Dmitry"]
[Black "Tsydypov, Zhamsaran"]
[Result "1-0"]
[ECO "B51"]
[WhiteElo "2536"]
[BlackElo "2546"]
[Annotator "RC"]
[PlyCount "109"]
[EventDate "2019.05.29"]
[EventType "swiss"]
[EventCountry "RUS"]
[SourceTitle "playchess.com"]
[Source "ChessBase"]
[SourceQuality "1"]
[TimeControl "900+10"]

1. e4 {[%emt 0:00:00]} c5 {[%emt 0:00:05]} 2. Nf3 {[%emt 0:00:00]} d6 {[%emt 0:00:02]} 3. Bb5+ {[%emt 0:00:00]} Nd7 {[%emt 0:00:04]} 4. c3 {[%emt 0:00:00]} Ngf6 {[%emt 0:00:11]} 5. Bd3 {[%emt 0:00:00]} a6 {[%emt 0:00:26]} 6. Bc2 {[%emt 0:00:02]} b5 {[%emt 0:00:36]} 7. d4 {[%emt 0:00:13]} Bb7 {[%emt 0:00:03]} 8. Nbd2 {[%emt 0:00:33]} e6 {[%emt 0:00:06]} 9. O-O {[%emt 0:00:03]} Be7 {[%emt 0:00:31]} 10. Re1 {[%emt 0:00:41]} Qc7 {[%emt 0:00:24]} 11. e5 {[%emt 0:00:38]} dxe5 {[%emt 0:00:03]} 12. dxe5 {[%emt 0:00:01]} Nd5 {[%emt 0:00:45]} 13. a4 {[%emt 0:00:10]} O-O {[%emt 0:00:16]} 14. Ne4 {[%emt 0:00:11]} Rfd8 {[%emt 0:00:19]} 15. Ng3 {[%emt 0:00:26]} Nf8 {[%emt 0:00:38]} 16. Qe2 {[%emt 0:00:16]} Bc6 {[%emt 0:00:02]} 17. h4 {[%emt 0:00:40]} c4 {[%emt 0:01:43]} 18. Nh5 {[%emt 0:00:54]} Ng6 {[%emt 0:00:16]} 19. Ng5 {[%emt 0:00:46]} Rf8 {[%emt 0:02:17]} 20. Ng3 {[%emt 0:02:07]} Bxg5 {[%emt 0:01:10]} 21. Bxg5 {[%emt 0:00:13]} h6 22. Bd2 {[%emt 0:02:26]} Nxh4 {[%emt 0:03:21]} 23. Qg4 {[%emt 0:00:53]} Ng6 {[%emt 0:00:02]} 24. Nh5 {[%emt 0:00:40]} Nde7 {[%emt 0:00:27]} 25. Nf6+ {[%emt 0:00:53]} gxf6 {[%emt 0:00:20]} 26. exf6 {[%emt 0:00:11]} Nf5 {[%emt 0:00:08]} 27. Rxe6 {[%emt 0:02:29]} fxe6 {[%emt 0:00:36]} 28. Qxg6+ {[%emt 0:00:04]} Kh8 {[%emt 0:00:01]} 29. Bxf5 {[%emt 0:00:26]} exf5 {[%emt 0:00:18]} 30. Bxh6 {[%emt 0:00:21]} Rf7 {[%emt 0:01:56]} 31. Bg7+ {[%emt 0:00:07]} Kg8 {[%emt 0:00:15]} 32. Bh6+ {[%emt 0:01:09]} Kh8 {[%emt 0:00:01]} 33. Bg7+ {[%emt 0:00:02]} Kg8 {[%emt 0:00:01]} 34. Re1 {[%emt 0:00:15]} Re8 {[%emt 0:02:43]} 35. Rxe8+ {[%emt 0:00:20]} Bxe8 {[%emt 0:00:02]} 36. Qh5 {[%emt 0:00:01]} Rxg7 {[%emt 0:00:31]} 37. Qxe8+ {[%emt 0:00:03]} Kh7 {[%emt 0:00:01]} 38. Qh5+ {[%emt 0:00:16]} Kg8 {[%emt 0:00:03]} 39. fxg7 {[%emt 0:00:04]} Kxg7 {[%emt 0:00:11]} 40. axb5 {[%emt 0:00:24]} axb5 {[%emt 0:00:04]} 41. Qg5+ {[%emt 0:00:02]} Kh8 {[%emt 0:00:08]} 42. Qh6+ {[%emt 0:00:26]} Kg8 {[%emt 0:00:02]} 43. Qg6+ {[%emt 0:00:01]} Kh8 {[%emt 0:00:03]} 44. Qxf5 {[%emt 0:01:12]} Qa5 {[%emt 0:00:07]} 45. Kh2 {[%emt 0:00:55]} Qc7+ {[%emt 0:00:10]} 46. g3 {[%emt 0:00:03]} Qc6 {[%emt 0:00:16]} 47. Qf4 {[%emt 0:00:18]} Kg8 {[%emt 0:00:05]} 48. g4 {[%emt 0:00:03]} Qd5 {[%emt 0:00:08]} 49. g5 {[%emt 0:00:03]} Qc5 {[%emt 0:00:11]} 50. Qf6 {[%emt 0:00:28]} Qc7+ {[%emt 0:00:05]} 51. Kg2 {[%emt 0:00:06]} Qb7+ {[%emt 0:00:34]} 52. f3 {[%emt 0:00:02]} Qd5 {[%emt 0:00:34]} 53. g6 {[%emt 0:00:05]} Qd2+ {[%emt 0:00:06]} 54. Kh3 {[%emt 0:00:06]} Qd7+ {[%emt 0:00:04]} 55. Kg3 {[%emt 0:00:06]} 1-0

[Event "41st Nezhmetdinov Rapid 2019"]
[Site "Kazan"]
[Date "2019.05.29"]
[Round "6.3"]
[White "Moiseenko, Vadim"]
[Black "Nozdrachev, Vladislav"]
[Result "1/2-1/2"]
[ECO "A06"]
[WhiteElo "2525"]
[BlackElo "2489"]
[Annotator "RC"]
[PlyCount "89"]
[EventDate "2019.05.29"]
[EventType "swiss"]
[EventCountry "RUS"]
[SourceTitle "playchess.com"]
[Source "ChessBase"]
[SourceQuality "1"]
[TimeControl "900+10"]

1. Nf3 {[%emt 0:00:00]} d5 {[%emt 0:00:00]} 2. b3 {[%emt 0:00:01]} Nf6 {[%emt 0:00:03]} 3. Bb2 {[%emt 0:00:02]} e6 {[%emt 0:00:11]} 4. g3 {[%emt 0:00:11]} Be7 {[%emt 0:00:03]} 5. c4 {[%emt 0:00:12]} O-O {[%emt 0:00:04]} 6. Bg2 {[%emt 0:00:02]} a5 {[%emt 0:00:04]} 7. a3 {[%emt 0:00:08]} a4 {[%emt 0:01:07]} 8. b4 {[%emt 0:00:23]} dxc4 {[%emt 0:00:27]} 9. Ne5 {[%emt 0:00:03]} Nc6 {[%emt 0:00:40]} 10. Nxc4 {[%emt 0:00:15]} Nd4 {[%emt 0:00:23]} 11. Nc3 {[%emt 0:01:12]} Rb8 {[%emt 0:02:09]} 12. O-O {[%emt 0:00:20]} b5 {[%emt 0:00:07]} 13. Na5 {[%emt 0:00:09]} c5 {[%emt 0:00:13]} 14. Na2 {[%emt 0:01:15]} cxb4 {[%emt 0:01:32]} 15. axb4 {[%emt 0:00:10]} Rb6 {[%emt 0:01:47]} 16. Rc1 {[%emt 0:00:41]} e5 {[%emt 0:00:22]} 17. e3 {[%emt 0:00:14]} Bg4 {[%emt 0:00:36]} 18. f3 {[%emt 0:00:01]} Be6 {[%emt 0:00:02]} 19. exd4 {[%emt 0:00:28]} exd4 {[%emt 0:00:44]} 20. f4 {[%emt 0:01:58]} Bxa2 {[%emt 0:00:15]} 21. Nc6 {[%emt 0:00:01]} Rxc6 {[%emt 0:00:10]} 22. Bxc6 {[%emt 0:00:01]} Bxb4 {[%emt 0:01:04]} 23. Bxb5 {[%emt 0:00:26]} a3 {[%emt 0:00:01]} 24. Ba1 {[%emt 0:01:42]} d3 {[%emt 0:00:01]} 25. Bc6 {[%emt 0:02:04]} Bd5 {[%emt 0:01:25]} 26. Bxd5 {[%emt 0:02:56]} Qxd5 {[%emt 0:00:03]} 27. Qf3 {[%emt 0:00:23]} Ne4 {[%emt 0:00:32]} 28. Rfd1 {[%emt 0:01:35]} Re8 {[%emt 0:00:59]} 29. Kg2 {[%emt 0:00:27]} f6 {[%emt 0:00:48]} 30. h4 {[%emt 0:00:29]} h5 {[%emt 0:00:56]} 31. Kh2 {[%emt 0:00:11]} Rd8 {[%emt 0:00:48]} 32. Qg2 {[%emt 0:01:18]} Bc5 {[%emt 0:00:16]} 33. Re1 {[%emt 0:00:11]} f5 {[%emt 0:00:33]} 34. Be5 {[%emt 0:00:07]} Bd4 {[%emt 0:00:25]} 35. Bxd4 {[%emt 0:00:19]} Qxd4 {[%emt 0:00:02]} 36. Ra1 {[%emt 0:00:13]} Rb8 {[%emt 0:01:24]} 37. Rxa3 {[%emt 0:00:14]} Nxd2 {[%emt 0:00:14]} 38. Ra8 {[%emt 0:00:22]} Rxa8 {[%emt 0:00:06]} 39. Qxa8+ {[%emt 0:00:01]} Kh7 {[%emt 0:00:02]} 40. Re8 {[%emt 0:00:36]} Qf2+ {[%emt 0:00:22]} 41. Kh3 {[%emt 0:00:04]} Qf1+ {[%emt 0:00:09]} 42. Qg2 {[%emt 0:00:02]} Qd1 {[%emt 0:00:04]} 43. Qa8 {[%emt 0:00:12]} Qf1+ {[%emt 0:00:11]} 44. Qg2 {[%emt 0:00:01]} Qd1 {[%emt 0:00:10]} 45. Qa8 {[%emt 0:00:08]} 1/2-1/2

[Event "41st Nezhmetdinov Rapid 2019"]
[Site "Kazan"]
[Date "2019.05.30"]
[Round "9.5"]
[White "Romanov, Evgeny"]
[Black "Kokarev, Dmitry"]
[Result "0-1"]
[ECO "A36"]
[WhiteElo "2573"]
[BlackElo "2605"]
[Annotator "RC"]
[PlyCount "84"]
[EventDate "2019.05.29"]
[EventType "swiss"]
[EventCountry "RUS"]
[SourceTitle "playchess.com"]
[Source "ChessBase"]
[SourceQuality "1"]
[TimeControl "900+10"]

1. g3 {[%emt 0:01:38]} g6 {[%emt 0:00:00]} 2. Bg2 {[%emt 0:00:05]} c5 {[%emt 0:00:00]} 3. c4 {[%emt 0:00:05]} Bg7 {[%emt 0:00:00]} 4. Nc3 {[%emt 0:00:02]} Nc6 {[%emt 0:00:00]} 5. e4 {[%emt 0:01:13]} e6 {[%emt 0:00:07]} 6. Nge2 {[%emt 0:00:03]} Nge7 {[%emt 0:00:02]} 7. O-O {[%emt 0:00:03]} O-O {[%emt 0:00:05]} 8. d3 {[%emt 0:00:02]} d6 {[%emt 0:00:13]} 9. a3 {[%emt 0:00:11]} a5 {[%emt 0:00:03]} 10. h3 {[%emt 0:00:26]} b6 {[%emt 0:00:28]} 11. g4 {[%emt 0:00:14]} Bb7 {[%emt 0:00:21]} 12. g5 {[%emt 0:01:45]} Qd7 {[%emt 0:01:09]} 13. h4 {[%emt 0:00:35]} Nd4 {[%emt 0:00:04]} 14. Nxd4 {[%emt 0:00:28]} cxd4 {[%emt 0:00:03]} 15. Nb5 {[%emt 0:01:34]} d5 {[%emt 0:00:13]} 16. Bf4 {[%emt 0:00:08]} e5 {[%emt 0:00:13]} 17. Bg3 {[%emt 0:00:01]} dxc4 {[%emt 0:00:08]} 18. dxc4 {[%emt 0:00:01]} Nc6 {[%emt 0:04:57]} 19. b3 {[%emt 0:00:56]} Ba6 {[%emt 0:00:29]} 20. a4 {[%emt 0:00:33]} Nd8 {[%emt 0:00:39]} 21. Kh2 {[%emt 0:00:14]} Ne6 {[%emt 0:00:17]} 22. Bh3 {[%emt 0:00:04]} Rad8 {[%emt 0:00:04]} 23. Bxe6 {[%emt 0:00:40]} Qxe6 {[%emt 0:00:02]} 24. Nc7 {[%emt 0:00:03]} Qc8 {[%emt 0:00:01]} 25. Nxa6 {[%emt 0:00:02]} Qxa6 {[%emt 0:00:02]} 26. Qd3 {[%emt 0:00:27]} f5 {[%emt 0:00:38]} 27. gxf6 {[%emt 0:00:12]} Bxf6 {[%emt 0:00:02]} 28. f4 {[%emt 0:01:57]} exf4 {[%emt 0:00:13]} 29. Rxf4 {[%emt 0:00:01]} Qc8 {[%emt 0:01:33]} 30. e5 {[%emt 0:01:03]} Bg7 {[%emt 0:00:14]} 31. Rxd4 {[%emt 0:00:58]} Rxd4 {[%emt 0:01:31]} 32. Qxd4 {[%emt 0:00:01]} Rd8 {[%emt 0:00:02]} 33. Qf4 {[%emt 0:00:56]} Qe6 {[%emt 0:00:49]} 34. Re1 {[%emt 0:00:41]} Bf8 {[%emt 0:01:02]} 35. Re2 {[%emt 0:00:27]} Bc5 {[%emt 0:00:11]} 36. h5 {[%emt 0:01:27]} Rd4 {[%emt 0:02:01]} 37. Qf3 {[%emt 0:00:02]} Rd7 {[%emt 0:00:18]} 38. Qa8+ {[%emt 0:01:11]} Kg7 {[%emt 0:00:05]} 39. Bf4 {[%emt 0:00:03]} Bg1+ {[%emt 0:00:57]} 40. Kxg1 {[%emt 0:00:21]} Qg4+ {[%emt 0:00:01]} 41. Qg2 {[%emt 0:00:12]} Rd1+ {[%emt 0:00:11]} 42. Kh2 {[%emt 0:00:03]} Qxf4+ {[%emt 0:00:05]} 0-1

[Event "41st Nezhmetdinov Rapid 2019"]
[Site "Kazan"]
[Date "2019.05.30"]
[Round "10.9"]
[White "Makhmutov, Rail"]
[Black "Nozdrachev, Vladislav"]
[Result "1-0"]
[ECO "E06"]
[WhiteElo "2390"]
[BlackElo "2489"]
[Annotator "ChessBase"]
[PlyCount "77"]
[EventDate "2019.05.29"]
[EventType "swiss"]
[EventCountry "RUS"]
[SourceTitle "playchess.com"]
[Source "ChessBase"]
[SourceQuality "1"]
[TimeControl "900+10"]

1. d4 {[%emt 0:00:00]} Nf6 {[%emt 0:00:00]} 2. c4 {[%emt 0:00:00]} e6 {[%emt 0:00:00]} 3. g3 {[%emt 0:00:37]} d5 {[%emt 0:00:00]} 4. Nf3 {[%emt 0:00:06]} Be7 {[%emt 0:00:00]} 5. Bg2 {[%emt 0:00:03]} O-O {[%emt 0:00:01]} 6. O-O {[%emt 0:00:02]} dxc4 {[%emt 0:00:03]} 7. Ne5 {[%emt 0:00:09]} Nc6 {[%emt 0:00:06]} 8. Bxc6 {[%emt 0:00:12]} bxc6 {[%emt 0:00:02]} 9. Nxc6 {[%emt 0:00:02]} Qe8 {[%emt 0:00:01]} 10. Nxe7+ {[%emt 0:00:04]} Qxe7 {[%emt 0:00:01]} 11. Qa4 {[%emt 0:00:26]} c5 {[%emt 0:00:35]} 12. Qa3 {[%emt 0:00:49]} Bb7 {[%emt 0:00:30]} 13. Nc3 {[%emt 0:00:20]} Rfc8 {[%emt 0:01:53]} 14. Bg5 {[%emt 0:00:08]} h6 {[%emt 0:00:52]} 15. Bxf6 {[%emt 0:00:16]} Qxf6 {[%emt 0:00:02]} 16. dxc5 {[%emt 0:00:14]} Qf5 {[%emt 0:00:20]} 17. Rad1 {[%emt 0:03:25]} Qxc5 {[%emt 0:04:58]} 18. Rd8+ {[%emt 0:01:16]} Kh7 {[%emt 0:00:08]} 19. Qxc5 {[%emt 0:00:09]} Rxc5 {[%emt 0:00:02]} 20. Rd7 {[%emt 0:00:26]} Bc6 {[%emt 0:01:18]} 21. Rxf7 {[%emt 0:04:04]} Be8 {[%emt 0:00:33]} 22. Re7 {[%emt 0:00:24]} Rc6 {[%emt 0:01:16]} 23. Rd1 {[%emt 0:00:06]} Rb6 {[%emt 0:00:10]} 24. Rd2 {[%emt 0:00:13]} Rab8 {[%emt 0:00:12]} 25. f3 {[%emt 0:00:23]} a5 {[%emt 0:00:16]} 26. Kf2 {[%emt 0:00:34]} Kg8 {[%emt 0:00:13]} 27. h4 {[%emt 0:01:04]} Kf8 {[%emt 0:00:20]} 28. Rc7 {[%emt 0:00:35]} Rxb2 {[%emt 0:00:09]} 29. Rd4 {[%emt 0:00:23]} Rc2 {[%emt 0:00:50]} 30. Rf4+ {[%emt 0:00:23]} Kg8 {[%emt 0:00:02]} 31. Rfxc4 {[%emt 0:00:07]} e5 {[%emt 0:03:23]} 32. Re4 {[%emt 0:01:05]} Bf7 {[%emt 0:00:56]} 33. Rxe5 {[%emt 0:00:03]} Bxa2 {[%emt 0:00:29]} 34. Rxa5 {[%emt 0:00:24]} Bf7 {[%emt 0:00:14]} 35. Raa7 {[%emt 0:00:06]} Rf8 {[%emt 0:00:03]} 36. g4 {[%emt 0:00:49]} Rb2 {[%emt 0:00:07]} 37. Ne4 {[%emt 0:00:12]} Rb6 {[%emt 0:00:04]} 38. Rd7 {[%emt 0:00:17]} Rg6 {[%emt 0:00:33]} 39. h5 {[%emt 0:00:20]} 1-0

[Event "41st Nezhmetdinov Rapid 2019"]
[Site "Kazan"]
[Date "2019.05.30"]
[Round "10.10"]
[White "Frolyanov, Dmitry"]
[Black "Korovin, Mikhail"]
[Result "1/2-1/2"]
[ECO "C04"]
[WhiteElo "2538"]
[BlackElo "2311"]
[Annotator "RC"]
[PlyCount "103"]
[EventDate "2019.05.29"]
[EventType "swiss"]
[EventCountry "RUS"]
[SourceTitle "playchess.com"]
[Source "ChessBase"]
[SourceQuality "1"]
[TimeControl "900+10"]

1. e4 {[%emt 0:00:00]} e6 {[%emt 0:00:00]} 2. d4 {[%emt 0:00:00]} d5 {[%emt 0:00:00]} 3. Nd2 {[%emt 0:00:05]} Nc6 {[%emt 0:00:00]} 4. Ngf3 {[%emt 0:00:14]} Nf6 {[%emt 0:00:00]} 5. e5 {[%emt 0:00:22]} Nd7 {[%emt 0:00:00]} 6. c3 {[%emt 0:00:57]} f6 {[%emt 0:00:02]} 7. exf6 {[%emt 0:00:03]} Qxf6 {[%emt 0:00:02]} 8. Be2 {[%emt 0:01:14]} Bd6 {[%emt 0:00:05]} 9. Nf1 {[%emt 0:00:24]} O-O {[%emt 0:01:05]} 10. Ng3 {[%emt 0:00:05]} e5 {[%emt 0:01:11]} 11. dxe5 {[%emt 0:00:06]} Ndxe5 {[%emt 0:00:02]} 12. O-O {[%emt 0:01:33]} Be6 {[%emt 0:00:36]} 13. Ng5 {[%emt 0:00:32]} Bc5 {[%emt 0:00:59]} 14. Kh1 {[%emt 0:00:28]} Rad8 {[%emt 0:01:50]} 15. f4 {[%emt 0:00:34]} Nc4 {[%emt 0:01:53]} 16. Qd3 {[%emt 0:01:59]} g6 {[%emt 0:02:10]} 17. Nxe6 {[%emt 0:00:17]} Qxe6 {[%emt 0:00:02]} 18. f5 {[%emt 0:00:07]} gxf5 {[%emt 0:00:55]} 19. Nxf5 {[%emt 0:00:03]} Kh8 {[%emt 0:00:35]} 20. Bg5 {[%emt 0:00:23]} Rde8 {[%emt 0:00:15]} 21. Bh5 {[%emt 0:00:20]} N6e5 {[%emt 0:01:02]} 22. Qg3 {[%emt 0:02:08]} Ng6 {[%emt 0:00:41]} 23. Bg4 {[%emt 0:01:35]} Qe5 {[%emt 0:01:11]} 24. Qh3 {[%emt 0:01:00]} Nd6 {[%emt 0:00:46]} 25. b4 {[%emt 0:00:49]} Ne4 {[%emt 0:00:53]} 26. bxc5 {[%emt 0:02:04]} Nxg5 {[%emt 0:00:02]} 27. Qh6 {[%emt 0:00:22]} Ne4 {[%emt 0:00:21]} 28. Bh5 {[%emt 0:00:09]} Nf2+ {[%emt 0:01:44]} 29. Rxf2 {[%emt 0:00:21]} Rxf5 {[%emt 0:00:03]} 30. Rxf5 {[%emt 0:00:12]} Qxf5 {[%emt 0:00:01]} 31. h3 {[%emt 0:00:21]} Kg8 {[%emt 0:01:04]} 32. Bg4 {[%emt 0:00:05]} Qf4 {[%emt 0:00:13]} 33. Qxf4 {[%emt 0:00:22]} Nxf4 {[%emt 0:00:01]} 34. Rb1 {[%emt 0:00:10]} b6 {[%emt 0:00:12]} 35. cxb6 {[%emt 0:00:02]} axb6 {[%emt 0:00:02]} 36. Rd1 {[%emt 0:00:25]} Re3 {[%emt 0:00:25]} 37. Rd4 {[%emt 0:00:23]} Nd3 {[%emt 0:00:13]} 38. Kh2 {[%emt 0:00:20]} c6 {[%emt 0:00:21]} 39. c4 {[%emt 0:00:29]} dxc4 {[%emt 0:00:01]} 40. Rxc4 {[%emt 0:00:01]} Ne5 {[%emt 0:00:02]} 41. Be6+ {[%emt 0:00:17]} Kg7 {[%emt 0:00:03]} 42. Rb4 {[%emt 0:00:14]} b5 {[%emt 0:00:38]} 43. Bc8 {[%emt 0:00:02]} Re2 {[%emt 0:00:05]} 44. a4 {[%emt 0:00:13]} bxa4 {[%emt 0:00:20]} 45. Rxa4 {[%emt 0:00:01]} Nf3+ {[%emt 0:00:06]} 46. Kg3 {[%emt 0:00:05]} Ne1 {[%emt 0:00:01]} 47. Rg4+ {[%emt 0:00:23]} Kf6 {[%emt 0:00:04]} 48. Rf4+ {[%emt 0:00:08]} Ke5 {[%emt 0:00:21]} 49. Rf5+ {[%emt 0:00:04]} Kd6 {[%emt 0:00:06]} 50. Rf6+ {[%emt 0:00:07]} Kc7 {[%emt 0:00:15]} 51. Bg4 {[%emt 0:00:02]} Rxg2+ {[%emt 0:00:03]} 52. Kh4 {[%emt 0:00:01]} 1/2-1/2

[Event "41st Nezhmetdinov Rapid 2019"]
[Site "Kazan"]
[Date "2019.05.30"]
[Round "11.9"]
[White "Potapov, Pavel"]
[Black "Pershin, Denis"]
[Result "1-0"]
[ECO "B12"]
[WhiteElo "2492"]
[BlackElo "2409"]
[Annotator "ChessBase"]
[PlyCount "64"]
[EventDate "2019.05.29"]
[EventType "swiss"]
[EventCountry "RUS"]
[SourceTitle "playchess.com"]
[Source "ChessBase"]
[SourceQuality "1"]
[TimeControl "900+10"]

1. e4 {[%emt 0:00:00]} c6 {[%emt 0:00:00]} 2. d4 {[%emt 0:00:00]} d5 {[%emt 0:00:00]} 3. e5 {[%emt 0:00:00]} Bf5 {[%emt 0:00:00]} 4. h4 {[%emt 0:00:00]} h5 {[%emt 0:00:04]} 5. Bd3 {[%emt 0:00:00]} Bxd3 {[%emt 0:00:01]} 6. Qxd3 {[%emt 0:00:02]} e6 {[%emt 0:00:02]} 7. Bg5 {[%emt 0:00:13]} Qb6 {[%emt 0:00:01]} 8. Nd2 {[%emt 0:00:34]} c5 {[%emt 0:00:02]} 9. c4 {[%emt 0:00:20]} Qxb2 {[%emt 0:00:02]} 10. Rb1 {[%emt 0:00:23]} Qxd4 {[%emt 0:00:03]} 11. Qe2 {[%emt 0:00:34]} b6 {[%emt 0:01:51]} 12. Ngf3 {[%emt 0:01:58]} Qg4 {[%emt 0:00:02]} 13. O-O {[%emt 0:01:03]} Be7 {[%emt 0:01:18]} 14. cxd5 {[%emt 0:01:51]} exd5 {[%emt 0:00:02]} 15. e6 {[%emt 0:00:46]} Qxe6 {[%emt 0:07:10]} 16. Qd3 {[%emt 0:00:02]} Nc6 {[%emt 0:02:00]} 17. Rfe1 {[%emt 0:00:45]} Qd7 {[%emt 0:00:07]} 18. Ne5 {[%emt 0:01:21]} Nxe5 {[%emt 0:00:02]} 19. Rxe5 {[%emt 0:00:02]} O-O-O {[%emt 0:00:48]} 20. Qa6+ {[%emt 0:00:25]} Kb8 {[%emt 0:00:01]} 21. Rxb6+ {[%emt 0:00:22]} axb6 {[%emt 0:00:05]} 22. Rxe7 {[%emt 0:00:03]} Qxe7 {[%emt 0:01:23]} 23. Bxe7 {[%emt 0:02:32]} Nxe7 {[%emt 0:00:01]} 24. Qxb6+ {[%emt 0:00:02]} Kc8 {[%emt 0:00:01]} 25. Nb3 {[%emt 0:01:32]} Rh6 {[%emt 0:00:28]} 26. Qxc5+ {[%emt 0:00:25]} Nc6 {[%emt 0:00:02]} 27. Nd4 {[%emt 0:00:12]} Kb7 {[%emt 0:00:17]} 28. Qb5+ {[%emt 0:00:50]} Kc7 {[%emt 0:00:03]} 29. Qc5 {[%emt 0:00:07]} Rd7 {[%emt 0:03:13]} 30. a4 {[%emt 0:00:06]} Kb7 {[%emt 0:00:33]} 31. Nf5 {[%emt 0:00:47]} Re6 {[%emt 0:00:16]} 32. a5 {[%emt 0:00:16]} Re5 1-0